[Event "Skol-SM i Schack 2024, Grupp A"]
[Site "Arena Varberg, Kattegattsvagen 26, Varberg, Sweden"]
[Date "2024.10.13"]
[Round "7.7"]
[White "Savela, Julina"]
[Black "Keskitalo, Rasmus"]
[Result "1-0"]
[TimeControl "45 minutes + 10 seconds per move from move one."]
[WhiteFideId "1767437"]
[BlackFideId "1768271"]
[WhiteElo "1682"]
[BlackElo "1752"]

1. d4 {[%clk 00:42:55]} {[%emt 00:02:24]} d5 {[%clk 00:45:16]} {[%emt
00:00:04]} 2. Nc3 {[%clk 00:42:56]} {[%emt 00:00:09]} Nf6 {[%clk 00:45:23]}
{[%emt 00:00:04]} 3. Bg5 {[%clk 00:42:56]} {[%emt 00:00:10]} e6 {[%clk
00:44:04]} {[%emt 00:01:29]} 4. e4 {[%clk 00:42:55]} {[%emt 00:00:10]} dxe4
{[%clk 00:43:57]} {[%emt 00:00:18]} 5. Nxe4 {[%clk 00:43:01]} {[%emt 00:00:03]}
Be7 {[%clk 00:44:01]} {[%emt 00:00:06]} 6. Bxf6 {[%clk 00:42:03]} {[%emt
00:01:09]} Bxf6 {[%clk 00:44:09]} {[%emt 00:00:02]} 7. Nf3 {[%clk 00:41:37]}
{[%emt 00:00:36]} O-O {[%clk 00:43:58]} {[%emt 00:00:21]} 8. c3 {[%clk
00:39:56]} {[%emt 00:01:51]} b6 {[%clk 00:43:53]} {[%emt 00:00:14]} 9. Bd3
{[%clk 00:39:44]} {[%emt 00:00:22]} Bb7 {[%clk 00:44:01]} {[%emt 00:00:02]} 10.
Qe2 {[%clk 00:39:08]} {[%emt 00:00:46]} a5 {[%clk 00:43:27]} {[%emt 00:00:45]}
11. h4 {[%clk 00:38:37]} {[%emt 00:00:40]} Nd7 {[%clk 00:43:04]} {[%emt
00:00:33]} 12. O-O-O {[%clk 00:36:04]} {[%emt 00:02:44]} c6 {[%clk 00:37:02]}
{[%emt 00:06:12]} 13. Nd6 {[%clk 00:34:46]} {[%emt 00:01:28]} Qc7 {[%clk
00:36:26]} {[%emt 00:00:46]} 14. Nxb7 {[%clk 00:34:42]} {[%emt 00:00:14]} Qxb7
{[%clk 00:36:31]} {[%emt 00:00:05]} 15. Qe4 {[%clk 00:34:32]} {[%emt 00:00:21]}
g6 {[%clk 00:36:32]} {[%emt 00:00:08]} 16. h5 {[%clk 00:34:11]} {[%emt
00:00:31]} Kg7 {[%clk 00:36:18]} {[%emt 00:00:24]} 17. Rh3 {[%clk 00:30:33]}
{[%emt 00:03:48]} Qc7 {[%clk 00:31:09]} {[%emt 00:05:19]} 18. g4 {[%clk
00:29:40]} {[%emt 00:01:03]} Qd8 {[%clk 00:20:38]} {[%emt 00:10:42]} 19. hxg6
{[%clk 00:27:59]} {[%emt 00:01:51]} fxg6 {[%clk 00:18:45]} {[%emt 00:02:02]} 20.
Rxh7+ {[%clk 00:27:32]} {[%emt 00:00:38]} 1-0

[Event "Skol-SM i Schack 2024, Grupp A"]
[Site "Arena Varberg, Kattegattsvagen 26, Varberg, Sweden"]
[Date "2024.10.13"]
[Round "7.8"]
[White "Persson Holm, Simon"]
[Black "Langhals, Mattias"]
[Result "0-1"]
[TimeControl "45 minutes + 10 seconds per move from move one."]
[WhiteFideId "1744380"]
[BlackFideId "1779168"]
[WhiteElo "1737"]
[BlackElo "1697"]

1. d4 {[%clk 00:45:18]} {[%emt 00:00:01]} d5 {[%clk 00:44:49]} {[%emt
00:00:31]} 2. c4 {[%clk 00:45:23]} {[%emt 00:00:05]} c6 {[%clk 00:44:53]}
{[%emt 00:00:07]} 3. Nc3 {[%clk 00:45:24]} {[%emt 00:00:10]} Nf6 {[%clk
00:44:58]} {[%emt 00:00:04]} 4. Nf3 {[%clk 00:45:24]} {[%emt 00:00:10]} e6
{[%clk 00:45:00]} {[%emt 00:00:07]} 5. g3 {[%clk 00:45:25]} {[%emt 00:00:09]}
Nbd7 {[%clk 00:44:36]} {[%emt 00:00:34]} 6. Bg2 {[%clk 00:45:26]} {[%emt
00:00:09]} Bd6 {[%clk 00:43:58]} {[%emt 00:00:48]} 7. O-O {[%clk 00:45:19]}
{[%emt 00:00:18]} O-O {[%clk 00:43:38]} {[%emt 00:00:30]} 8. b3 {[%clk
00:44:52]} {[%emt 00:00:37]} Re8 {[%clk 00:41:24]} {[%emt 00:02:24]} 9. Bb2
{[%clk 00:41:56]} {[%emt 00:03:06]} Ne4 {[%clk 00:40:51]} {[%emt 00:00:43]} 10.
Qc2 {[%clk 00:40:45]} {[%emt 00:01:21]} f5 {[%clk 00:39:56]} {[%emt 00:01:05]}
11. Nd2 {[%clk 00:37:04]} {[%emt 00:03:51]} Qg5 {[%clk 00:37:01]} {[%emt
00:03:03]} 12. Ndxe4 {[%clk 00:26:12]} {[%emt 00:11:04]} fxe4 {[%clk 00:36:20]}
{[%emt 00:00:50]} 13. f3 {[%clk 00:25:45]} {[%emt 00:00:37]} exf3 {[%clk
00:34:32]} {[%emt 00:01:58]} 14. exf3 {[%clk 00:25:24]} {[%emt 00:00:31]} Qe3+
{[%clk 00:32:21]} {[%emt 00:02:21]} 15. Kh1 {[%clk 00:24:01]} {[%emt 00:01:33]}
Qh6 {[%clk 00:32:16]} {[%emt 00:00:15]} 16. f4 {[%clk 00:23:08]} {[%emt
00:01:04]} Nf6 {[%clk 00:30:58]} {[%emt 00:01:27]} 17. Rae1 {[%clk 00:21:26]}
{[%emt 00:01:53]} Bd7 {[%clk 00:28:29]} {[%emt 00:02:38]} 18. Re2 {[%clk
00:19:13]} {[%emt 00:02:24]} Nh5 {[%clk 00:27:01]} {[%emt 00:01:37]} 19. Re3
{[%clk 00:15:21]} {[%emt 00:04:02]} Rf8 {[%clk 00:24:39]} {[%emt 00:02:32]} 20.
Rfe1 {[%clk 00:12:44]} {[%emt 00:02:48]} Rae8 {[%clk 00:22:19]} {[%emt
00:02:29]} 21. Nb1 {[%clk 00:09:12]} {[%emt 00:03:43]} Nf6 {[%clk 00:18:53]}
{[%emt 00:03:36]} 22. R3e2 {[%clk 00:07:05]} {[%emt 00:02:17]} Ng4 {[%clk
00:16:59]} {[%emt 00:02:03]} 23. Bf3 {[%clk 00:06:35]} {[%emt 00:00:42]} Nf6
{[%clk 00:16:12]} {[%emt 00:00:56]} 24. Ba3 {[%clk 00:06:30]} {[%emt 00:00:14]}
Bxa3 {[%clk 00:15:31]} {[%emt 00:00:51]} 25. Nxa3 {[%clk 00:06:34]} {[%emt
00:00:06]} Nh5 {[%clk 00:13:35]} {[%emt 00:02:07]} 26. Kg2 {[%clk 00:05:19]}
{[%emt 00:01:25]} a6 {[%clk 00:10:37]} {[%emt 00:03:08]} 27. Nb1 {[%clk
00:03:13]} {[%emt 00:02:16]} dxc4 {[%clk 00:08:52]} {[%emt 00:01:55]} 28. bxc4
{[%clk 00:02:34]} {[%emt 00:00:49]} Rf6 {[%clk 00:07:51]} {[%emt 00:01:10]} 29.
d5 {[%clk 00:01:18]} {[%emt 00:01:26]} Rg6 {[%clk 00:07:21]} {[%emt 00:00:41]}
30. Bxh5 {[%clk 00:00:58]} {[%emt 00:00:30]} Qxh5 {[%clk 00:07:26]} {[%emt
00:00:05]} 31. Re5 {[%clk 00:01:04]} {[%emt 00:00:04]} Qh6 {[%clk 00:07:02]}
{[%emt 00:00:34]} 32. f5 {[%clk 00:01:08]} {[%emt 00:00:06]} Rf6 {[%clk
00:06:12]} {[%emt 00:01:00]} 33. fxe6 {[%clk 00:01:06]} {[%emt 00:00:12]} Bc8
{[%clk 00:06:11]} {[%emt 00:00:12]} 34. Nc3 {[%clk 00:00:51]} {[%emt 00:00:24]}
cxd5 {[%clk 00:05:26]} {[%emt 00:00:55]} 35. cxd5 {[%clk 00:00:56]} {[%emt
00:00:06]} b5 {[%clk 00:04:46]} {[%emt 00:00:50]} 36. Ne4 {[%clk 00:00:54]}
{[%emt 00:00:11]} Rff8 {[%clk 00:03:21]} {[%emt 00:01:35]} 37. Nd6 {[%clk
00:00:44]} {[%emt 00:00:20]} Qf6 {[%clk 00:01:54]} {[%emt 00:01:37]} 38. Nxe8
{[%clk 00:00:36]} {[%emt 00:00:17]} Rxe8 {[%clk 00:01:39]} {[%emt 00:00:26]} 39.
Rf5 {[%clk 00:00:22]} {[%emt 00:00:24]} Qd4 {[%clk 00:01:29]} {[%emt 00:00:20]}
40. Rd1 {[%clk 00:00:28]} {[%emt 00:00:05]} Qe3 {[%clk 00:01:19]} {[%emt
00:00:19]} 41. Rf7 {[%clk 00:00:26]} {[%emt 00:00:11]} h6 {[%clk 00:00:54]}
{[%emt 00:00:36]} 42. Rdf1 {[%clk 00:00:15]} {[%emt 00:00:20]} Qd4 {[%clk
00:00:55]} {[%emt 00:00:10]} 43. Qf5 {[%clk 00:00:21]} {[%emt 00:00:04]} Qd2+
{[%clk 00:00:35]} {[%emt 00:00:30]} 44. Rf2 {[%clk 00:00:28]} {[%emt 00:00:03]}
Qd4 {[%clk 00:00:41]} {[%emt 00:00:03]} 45. Rf8+ Rxf8 {[%clk 00:00:50]} 46.
Qxf8+ {[%clk 00:00:26]} {[%emt 00:00:02]} Kh7 {[%clk 00:00:59]} {[%emt
00:00:01]} 47. Qf5+ {[%clk 00:00:22]} {[%emt 00:00:14]} Kg8 {[%clk 00:01:02]}
{[%emt 00:00:07]} 48. Qf3 {[%clk 00:00:20]} {[%emt 00:00:12]} Bb7 {[%clk
00:00:56]} {[%emt 00:00:17]} 49. Qf7+ {[%clk 00:00:14]} {[%emt 00:00:15]} Kh7
{[%clk 00:01:04]} {[%emt 00:00:01]} 50. Qxb7 {[%clk 00:00:14]} {[%emt
00:00:11]} Qe4+ {[%clk 00:01:13]} {[%emt 00:00:01]} 51. Rf1 {[%emt 00:00:14]}
0-1

[Event "Skol-SM i Schack 2024, Grupp A"]
[Site "Arena Varberg, Kattegattsvagen 26, Varberg, Sweden"]
[Date "2024.10.13"]
[Round "8.12"]
[White "Stanton-Andersson, Coll"]
[Black "Wingh, Walter"]
[Result "0-1"]
[TimeControl "45 minutes + 10 seconds per move from move one."]
[WhiteFideId "1758837"]
[BlackFideId "1767836"]
[WhiteElo "1542"]
[BlackElo "1612"]

1. e4 {[%clk 00:45:19]} {[%emt 00:00:01]} e6 {[%clk 00:45:16]} {[%emt
00:00:04]} 2. d4 {[%clk 00:45:23]} {[%emt 00:00:05]} d5 {[%clk 00:45:23]}
{[%emt 00:00:03]} 3. exd5 {[%clk 00:45:31]} {[%emt 00:00:03]} exd5 {[%clk
00:45:32]} {[%emt 00:00:01]} 4. Nf3 {[%clk 00:45:35]} {[%emt 00:00:06]} Bd6
{[%clk 00:45:15]} {[%emt 00:00:27]} 5. Nc3 {[%clk 00:45:21]} {[%emt 00:00:24]}
c6 {[%clk 00:45:23]} {[%emt 00:00:01]} 6. Be3 {[%clk 00:45:09]} {[%emt
00:00:22]} Bf5 {[%clk 00:45:21]} {[%emt 00:00:13]} 7. Bd3 {[%clk 00:45:16]}
{[%emt 00:00:03]} Bxd3 {[%clk 00:45:13]} {[%emt 00:00:16]} 8. Qxd3 {[%clk
00:45:22]} {[%emt 00:00:05]} Nd7 {[%clk 00:45:12]} {[%emt 00:00:11]} 9. O-O-O
{[%clk 00:45:09]} {[%emt 00:00:23]} Ngf6 {[%clk 00:45:20]} {[%emt 00:00:02]} 10.
Rde1 {[%clk 00:44:36]} {[%emt 00:00:44]} O-O {[%clk 00:45:24]} {[%emt
00:00:05]} 11. h4 {[%clk 00:44:30]} {[%emt 00:00:15]} Qa5 {[%clk 00:45:18]}
{[%emt 00:00:16]} 12. Bd2 {[%clk 00:42:05]} {[%emt 00:02:36]} Bb4 {[%clk
00:45:08]} {[%emt 00:00:21]} 13. Kb1 {[%clk 00:41:09]} {[%emt 00:01:05]} Rfe8
{[%clk 00:42:18]} {[%emt 00:03:00]} 14. Re2 {[%clk 00:34:21]} {[%emt 00:06:58]}
Rxe2 {[%clk 00:33:20]} {[%emt 00:09:09]} 15. Nxe2 {[%clk 00:29:42]} {[%emt
00:04:47]} Ne4 {[%clk 00:31:25]} {[%emt 00:02:06]} 16. Bxb4 {[%clk 00:29:11]}
{[%emt 00:00:42]} Qxb4 {[%clk 00:31:29]} {[%emt 00:00:06]} 17. Rf1 {[%clk
00:28:10]} {[%emt 00:01:10]} Ndf6 {[%clk 00:30:36]} {[%emt 00:01:02]} 18. c3
{[%clk 00:27:34]} {[%emt 00:00:46]} Qb6 {[%clk 00:29:20]} {[%emt 00:01:28]} 19.
Ne5 {[%clk 00:27:04]} {[%emt 00:00:40]} Re8 {[%clk 00:27:49]} {[%emt 00:01:40]}
20. f3 {[%clk 00:26:41]} {[%emt 00:00:32]} Nd6 {[%clk 00:27:49]} {[%emt
00:00:11]} 21. g4 {[%clk 00:25:39]} {[%emt 00:01:11]} Qc7 {[%clk 00:26:29]}
{[%emt 00:01:31]} 22. Ng3 {[%clk 00:19:41]} {[%emt 00:06:07]} Nd7 {[%clk
00:26:14]} {[%emt 00:00:26]} 23. f4 {[%clk 00:19:24]} {[%emt 00:00:27]} Ne4
{[%clk 00:20:32]} {[%emt 00:05:53]} 24. Nxe4 {[%clk 00:13:37]} {[%emt
00:05:57]} dxe4 {[%clk 00:20:32]} {[%emt 00:00:10]} 25. Qe3 {[%clk 00:13:28]}
{[%emt 00:00:18]} Nb6 {[%clk 00:18:28]} {[%emt 00:02:15]} 26. Nd3 {[%clk
00:10:35]} {[%emt 00:03:02]} Qe7 {[%clk 00:15:39]} {[%emt 00:02:59]} 27. Nc5
{[%clk 00:07:19]} {[%emt 00:03:26]} Qxh4 {[%clk 00:14:23]} {[%emt 00:01:26]} 28.
Nxb7 {[%clk 00:07:26]} {[%emt 00:00:03]} Qxg4 {[%clk 00:13:58]} {[%emt
00:00:35]} 29. Rg1 {[%clk 00:06:09]} {[%emt 00:01:27]} Qe6 {[%clk 00:10:48]}
{[%emt 00:03:17]} 30. Nc5 {[%clk 00:05:58]} {[%emt 00:00:24]} Qe7 {[%clk
00:10:57]} {[%emt 00:00:02]} 31. Qg3 {[%clk 00:05:55]} {[%emt 00:00:12]} g6
{[%clk 00:10:35]} {[%emt 00:00:33]} 32. f5 {[%clk 00:05:48]} {[%emt 00:00:17]}
Qf6 {[%clk 00:06:07]} {[%emt 00:04:38]} 33. fxg6 {[%clk 00:05:28]} {[%emt
00:00:29]} hxg6 {[%clk 00:06:08]} {[%emt 00:00:09]} 34. Rh1 {[%clk 00:02:42]}
{[%emt 00:02:54]} e3 {[%clk 00:04:36]} {[%emt 00:01:45]} 35. Re1 {[%clk
00:01:50]} {[%emt 00:01:01]} Qf2 {[%clk 00:04:01]} {[%emt 00:00:45]} 36. Qxf2
{[%clk 00:00:47]} {[%emt 00:01:13]} exf2 {[%clk 00:04:10]} {[%emt 00:00:01]} 37.
Rxe8+ {[%clk 00:00:48]} {[%emt 00:00:08]} Kg7 {[%clk 00:04:18]} {[%emt
00:00:04]} 38. Kc2 {[%emt 00:00:48]} 0-1

[Event "Skol-SM i Schack 2024, Grupp A"]
[Site "Arena Varberg, Kattegattsvagen 26, Varberg, Sweden"]
[Date "2024.10.13"]
[Round "7.9"]
[White "Demeestere, Ewoud"]
[Black "Johansson, Sigge"]
[Result "1-0"]
[TimeControl "45 minutes + 10 seconds per move from move one."]
[WhiteFideId "1773585"]
[BlackFideId "1742612"]
[WhiteElo "1833"]
[BlackElo "1746"]

1. d4 {[%clk 00:45:19]} Nf6 {[%clk 00:45:15]} {[%emt 00:00:05]} 2. c4 {[%clk
00:45:26]} {[%emt 00:00:02]} e6 {[%clk 00:45:22]} {[%emt 00:00:03]} 3. Nf3
{[%clk 00:45:34]} {[%emt 00:00:03]} d5 {[%clk 00:45:28]} {[%emt 00:00:04]} 4.
Bg5 {[%clk 00:45:41]} {[%emt 00:00:03]} Be7 {[%clk 00:45:29]} {[%emt 00:00:09]}
5. Nc3 {[%clk 00:45:48]} {[%emt 00:00:02]} O-O {[%clk 00:45:27]} {[%emt
00:00:12]} 6. e3 {[%clk 00:45:56]} {[%emt 00:00:03]} h6 {[%clk 00:45:27]}
{[%emt 00:00:09]} 7. Bxf6 {[%clk 00:45:52]} {[%emt 00:00:15]} Bxf6 {[%clk
00:45:29]} {[%emt 00:00:08]} 8. Rc1 {[%clk 00:45:59]} {[%emt 00:00:02]} c6
{[%clk 00:45:31]} {[%emt 00:00:09]} 9. h4 {[%clk 00:45:57]} {[%emt 00:00:12]}
Nd7 {[%clk 00:45:23]} {[%emt 00:00:17]} 10. g4 {[%clk 00:46:04]} {[%emt
00:00:03]} g5 {[%clk 00:42:08]} {[%emt 00:03:26]} 11. hxg5 {[%clk 00:45:53]}
{[%emt 00:00:21]} Bxg5 {[%clk 00:42:12]} {[%emt 00:00:05]} 12. Nxg5 {[%clk
00:45:58]} {[%emt 00:00:05]} Qxg5 {[%clk 00:42:12]} {[%emt 00:00:10]} 13. f4
{[%clk 00:44:21]} {[%emt 00:01:48]} Qg7 {[%clk 00:41:46]} {[%emt 00:00:36]} 14.
Rc2 {[%clk 00:43:27]} {[%emt 00:01:04]} Nf6 {[%clk 00:36:37]} {[%emt 00:05:18]}
15. Rch2 {[%clk 00:39:51]} {[%emt 00:03:46]} Nxg4 {[%clk 00:36:31]} {[%emt
00:00:17]} 16. Rg2 {[%clk 00:39:48]} {[%emt 00:00:13]} f5 {[%clk 00:36:19]}
{[%emt 00:00:22]} 17. Be2 {[%clk 00:39:51]} {[%emt 00:00:06]} Kf7 {[%clk
00:35:50]} {[%emt 00:00:39]} 18. Bxg4 {[%clk 00:36:52]} {[%emt 00:03:10]} fxg4
{[%clk 00:35:23]} {[%emt 00:00:36]} 19. Rxg4 {[%clk 00:36:56]} {[%emt
00:00:06]} Qf6 {[%clk 00:32:11]} {[%emt 00:03:23]} 20. Rgh4 {[%clk 00:29:43]}
{[%emt 00:07:23]} Rh8 {[%clk 00:31:25]} {[%emt 00:00:56]} 21. Qh5+ {[%clk
00:29:23]} {[%emt 00:00:28]} Ke7 {[%clk 00:31:29]} {[%emt 00:00:05]} 22. Rg1
{[%clk 00:26:31]} {[%emt 00:03:03]} Bd7 {[%clk 00:25:37]} {[%emt 00:06:04]} 23.
Rhg4 {[%clk 00:22:28]} {[%emt 00:04:12]} Rh7 {[%clk 00:24:18]} {[%emt
00:01:30]} 24. Qh2 {[%clk 00:15:10]} {[%emt 00:07:27]} h5 {[%clk 00:18:42]}
{[%emt 00:05:47]} 25. Rg6 {[%clk 00:13:37]} {[%emt 00:01:42]} Qf7 {[%clk
00:16:07]} {[%emt 00:02:45]} 26. c5 {[%clk 00:08:57]} {[%emt 00:04:50]} h4
{[%clk 00:09:38]} {[%emt 00:06:39]} 27. f5 {[%clk 00:07:53]} {[%emt 00:01:15]}
Rf8 {[%clk 00:04:32]} {[%emt 00:05:15]} 28. f6+ {[%clk 00:07:10]} {[%emt
00:00:53]} Kd8 {[%clk 00:04:12]} {[%emt 00:00:31]} 29. Qb8+ {[%clk 00:07:01]}
{[%emt 00:00:19]} Bc8 {[%clk 00:04:10]} {[%emt 00:00:12]} 30. Rg7 {[%clk
00:06:37]} {[%emt 00:00:34]} h3 {[%clk 00:01:32]} {[%emt 00:02:48]} 31. Rxf7
{[%clk 00:06:30]} {[%emt 00:00:17]} Rfxf7 {[%clk 00:01:40]} {[%emt 00:00:02]}
32. Rg8+ {[%clk 00:06:33]} {[%emt 00:00:06]} 1-0

[Event "Skol-SM i Schack 2024, Grupp A"]
[Site "Arena Varberg, Kattegattsvagen 26, Varberg, Sweden"]
[Date "2024.10.13"]
[Round "7.10"]
[White "Fredlund, Joel"]
[Black "Sniegon, Filip"]
[Result "1-0"]
[TimeControl "45 minutes + 10 seconds per move from move one."]
[WhiteFideId "1748157"]
[BlackFideId "1778277"]
[WhiteElo "1454"]
[BlackElo "1684"]

1. e4 {[%clk 00:45:13]} {[%emt 00:00:06]} c5 {[%clk 00:45:18]} {[%emt
00:00:02]} 2. Nf3 {[%clk 00:45:10]} {[%emt 00:00:13]} d6 {[%clk 00:45:27]}
{[%emt 00:00:02]} 3. d4 {[%clk 00:44:55]} {[%emt 00:00:25]} cxd4 {[%clk
00:45:35]} {[%emt 00:00:02]} 4. Nxd4 {[%clk 00:44:24]} {[%emt 00:00:41]} Nf6
{[%clk 00:45:42]} {[%emt 00:00:03]} 5. Nc3 {[%clk 00:44:16]} {[%emt 00:00:18]}
a6 {[%clk 00:45:50]} {[%emt 00:00:02]} 6. Bc4 {[%clk 00:43:36]} {[%emt
00:00:50]} e5 {[%clk 00:45:41]} {[%emt 00:00:19]} 7. Nf3 {[%clk 00:43:40]}
{[%emt 00:00:06]} Be7 {[%clk 00:45:17]} {[%emt 00:00:34]} 8. Nd5 {[%clk
00:42:54]} {[%emt 00:00:57]} Nxe4 {[%clk 00:42:56]} {[%emt 00:02:30]} 9. Nxe7
{[%clk 00:38:34]} {[%emt 00:04:30]} Qxe7 {[%clk 00:42:00]} {[%emt 00:01:06]} 10.
Qe2 {[%clk 00:37:39]} {[%emt 00:01:05]} Nf6 {[%clk 00:41:39]} {[%emt 00:00:31]}
11. Ng5 {[%clk 00:36:04]} {[%emt 00:01:45]} O-O {[%clk 00:41:05]} {[%emt
00:00:43]} 12. h4 {[%clk 00:31:39]} {[%emt 00:04:35]} b5 {[%clk 00:40:16]}
{[%emt 00:01:00]} 13. Bb3 {[%clk 00:30:10]} {[%emt 00:01:40]} Bb7 {[%clk
00:39:52]} {[%emt 00:00:34]} 14. Rh2 {[%clk 00:28:40]} {[%emt 00:01:39]} Nc6
{[%clk 00:38:39]} {[%emt 00:01:23]} 15. c3 {[%clk 00:27:49]} {[%emt 00:01:00]}
h6 {[%clk 00:37:26]} {[%emt 00:01:23]} 16. Bc2 {[%clk 00:25:53]} {[%emt
00:02:07]} d5 {[%clk 00:19:09]} {[%emt 00:18:27]} 17. g4 {[%clk 00:16:27]}
{[%emt 00:09:36]} Rfe8 {[%clk 00:16:51]} {[%emt 00:02:27]} 18. Nh3 {[%clk
00:12:07]} {[%emt 00:04:31]} d4 {[%clk 00:15:37]} {[%emt 00:01:24]} 19. g5
{[%clk 00:11:10]} {[%emt 00:01:07]} hxg5 {[%clk 00:14:32]} {[%emt 00:01:15]} 20.
hxg5 {[%clk 00:11:04]} {[%emt 00:00:15]} Nd5 {[%clk 00:13:45]} {[%emt
00:00:56]} 21. Qh5 {[%clk 00:07:34]} {[%emt 00:03:42]} g6 {[%clk 00:13:28]}
{[%emt 00:00:27]} 22. Qh4 {[%clk 00:04:50]} {[%emt 00:02:54]} Nf4 {[%clk
00:10:49]} {[%emt 00:02:49]} 23. Nxf4 {[%clk 00:03:29]} {[%emt 00:01:31]} exf4+
{[%clk 00:10:51]} {[%emt 00:00:07]} 24. Be3 {[%clk 00:03:31]} {[%emt 00:00:09]}
Qe5 {[%clk 00:10:25]} {[%emt 00:00:35]} 25. O-O-O {[%clk 00:01:28]} {[%emt
00:02:14]} fxe3 {[%clk 00:08:32]} {[%emt 00:02:03]} 26. Bb3 {[%clk 00:00:49]}
{[%emt 00:00:49]} Qg7 {[%clk 00:04:50]} {[%emt 00:03:51]} 27. Rdh1 {[%clk
00:00:19]} {[%emt 00:00:41]} Kf8 {[%clk 00:03:11]} {[%emt 00:01:48]} 28. Qf4
{[%clk 00:00:17]} {[%emt 00:00:12]} Ke7 {[%clk 00:00:45]} {[%emt 00:02:36]} 29.
Qc7+ {[%clk 00:00:15]} {[%emt 00:00:13]} Kf8 {[%clk 00:00:47]} {[%emt
00:00:08]} 30. Rh8+ {[%clk 00:00:23]} {[%emt 00:00:02]} Qxh8 {[%clk 00:00:55]}
{[%emt 00:00:02]} 31. Qxf7# {[%clk 00:00:32]} {[%emt 00:00:01]} 1-0

[Event "Skol-SM i Schack 2024, Grupp A"]
[Site "Arena Varberg, Kattegattsvagen 26, Varberg, Sweden"]
[Date "2024.10.13"]
[Round "7.11"]
[White "Abdulkader, Ahmad"]
[Black "Stanton-Andersson, Coll"]
[Result "1-0"]
[TimeControl "45 minutes + 10 seconds per move from move one."]
[WhiteFideId "1776550"]
[BlackFideId "1758837"]
[WhiteElo "1613"]
[BlackElo "1542"]

1. e4 {[%clk 00:43:53]} {[%emt 00:01:27]} e5 {[%clk 00:45:18]} {[%emt
00:00:02]} 2. Bc4 {[%clk 00:43:59]} {[%emt 00:00:04]} Nc6 {[%clk 00:45:15]}
{[%emt 00:00:13]} 3. Nf3 {[%clk 00:43:53]} {[%emt 00:00:16]} Bc5 {[%clk
00:45:09]} {[%emt 00:00:16]} 4. c3 {[%clk 00:43:56]} {[%emt 00:00:06]} d6
{[%clk 00:44:32]} {[%emt 00:00:47]} 5. d4 {[%clk 00:44:05]} {[%emt 00:00:02]}
Bb6 {[%clk 00:44:27]} {[%emt 00:00:15]} 6. dxe5 {[%clk 00:43:52]} {[%emt
00:00:23]} dxe5 {[%clk 00:42:56]} {[%emt 00:01:41]} 7. Qxd8+ {[%clk 00:43:52]}
{[%emt 00:00:10]} Kxd8 {[%clk 00:43:05]} {[%emt 00:00:01]} 8. Bxf7 {[%clk
00:43:25]} {[%emt 00:00:36]} Nf6 {[%clk 00:42:52]} {[%emt 00:00:24]} 9. Bg5
{[%clk 00:39:21]} {[%emt 00:04:14]} Ke7 {[%clk 00:41:34]} {[%emt 00:01:28]} 10.
Bc4 {[%clk 00:37:50]} {[%emt 00:01:41]} h6 {[%clk 00:40:59]} {[%emt 00:00:45]}
11. Bxf6+ {[%clk 00:37:57]} {[%emt 00:00:04]} gxf6 {[%clk 00:40:53]} {[%emt
00:00:15]} 12. Nbd2 {[%clk 00:35:35]} {[%emt 00:02:32]} Bg4 {[%clk 00:37:14]}
{[%emt 00:03:49]} 13. h3 {[%clk 00:35:31]} {[%emt 00:00:14]} Bh5 {[%clk
00:37:11]} {[%emt 00:00:13]} 14. g4 {[%clk 00:35:35]} {[%emt 00:00:06]} Bg6
{[%clk 00:36:24]} {[%emt 00:00:57]} 15. Nh4 {[%clk 00:34:53]} {[%emt 00:00:51]}
Bh7 {[%clk 00:35:58]} {[%emt 00:00:36]} 16. f3 {[%clk 00:34:00]} {[%emt
00:01:03]} Rad8 {[%clk 00:33:53]} {[%emt 00:02:16]} 17. Rf1 {[%clk 00:29:33]}
{[%emt 00:04:37]} Be3 {[%clk 00:32:36]} {[%emt 00:01:26]} 18. O-O-O {[%clk
00:28:53]} {[%emt 00:00:51]} Rd7 {[%clk 00:31:18]} {[%emt 00:01:28]} 19. Ng2
{[%clk 00:28:57]} {[%emt 00:00:05]} Bb6 {[%clk 00:28:25]} {[%emt 00:03:04]} 20.
Bb3 {[%clk 00:28:03]} {[%emt 00:01:04]} Na5 {[%clk 00:26:27]} {[%emt 00:02:08]}
21. Ba4 {[%clk 00:27:13]} {[%emt 00:00:59]} Nc6 {[%clk 00:21:19]} {[%emt
00:05:19]} 22. Nc4 {[%clk 00:23:52]} {[%emt 00:03:31]} Rhd8 {[%clk 00:14:44]}
{[%emt 00:06:44]} 23. Nxb6 {[%clk 00:23:00]} {[%emt 00:01:03]} axb6 {[%clk
00:14:43]} {[%emt 00:00:12]} 24. Ne3 {[%clk 00:22:50]} {[%emt 00:00:19]} Ke6
{[%clk 00:04:47]} {[%emt 00:10:05]} 25. Bb3+ {[%clk 00:22:06]} {[%emt
00:00:54]} Ke7 {[%clk 00:03:26]} {[%emt 00:01:31]} 26. Nd5+ {[%clk 00:20:55]}
{[%emt 00:01:20]} Kf8 {[%clk 00:03:09]} {[%emt 00:00:27]} 27. Nxf6 {[%clk
00:20:44]} {[%emt 00:00:22]} Rxd1+ {[%clk 00:03:06]} {[%emt 00:00:13]} 28. Rxd1
{[%clk 00:20:49]} {[%emt 00:00:04]} Rxd1+ {[%clk 00:02:42]} {[%emt 00:00:34]}
29. Kxd1 {[%clk 00:20:57]} {[%emt 00:00:03]} Bg6 {[%clk 00:02:22]} {[%emt
00:00:30]} 30. Nd5 {[%clk 00:19:47]} {[%emt 00:01:20]} Na5 {[%clk 00:02:18]}
{[%emt 00:00:13]} 31. Nxc7 {[%clk 00:19:30]} {[%emt 00:00:27]} Nxb3 {[%clk
00:02:03]} {[%emt 00:00:26]} 32. axb3 {[%clk 00:19:38]} {[%emt 00:00:01]} Bf7
{[%clk 00:01:53]} {[%emt 00:00:20]} 33. Nd5 {[%clk 00:19:38]} {[%emt 00:00:11]}
b5 {[%clk 00:01:04]} {[%emt 00:00:59]} 34. Kd2 {[%clk 00:18:48]} {[%emt
00:01:00]} Bxd5 {[%clk 00:00:19]} {[%emt 00:00:55]} 35. exd5 {[%clk 00:18:56]}
{[%emt 00:00:02]} Ke7 {[%clk 00:00:21]} {[%emt 00:00:08]} 36. Ke3 {[%clk
00:19:04]} {[%emt 00:00:02]} Kd6 {[%clk 00:00:17]} {[%emt 00:00:14]} 37. Ke4
{[%clk 00:19:09]} {[%emt 00:00:05]} Kxd5+ {[%emt 00:00:17]} 1-0